fUSD/lending_fUSD_20240213
["ID","MTS","AMOUNT","RATE_DAILY","PERIOD"]
[313935476,1707838272931,-50000.0,0.00031,2]
[313935477,1707838272947,-681.11172027,0.00031,7]
[313935478,1707838272962,-258.00607391,0.00031,4]
[313935479,1707838272977,-500.0,0.00031,3]
[313935480,1707838272991,-500.0,0.00031232,2]
[313935481,1707838273006,-500.0,0.00031232,2]
[313935482,1707838273020,-1934.6,0.00031232,2]
[313935483,1707838273034,-920.05,0.00031232,2]
[313935484,1707838273049,-500.0,0.00031232,2]
[313935485,1707838273065,-500.0,0.00031232,2]
[313935486,1707838273079,-1567.32,0.00031232,2]
[313935487,1707838273093,-500.0,0.00031232,2]
[313935488,1707838273107,-500.0,0.00031232,2]
[313935489,1707838273122,-500.0,0.00031232,2]
[313935490,1707838273136,-500.0,0.00031232,2]
[313935491,1707838273150,-500.0,0.00031232,2]
[313935492,1707838273164,-500.0,0.00031232,2]
[313935493,1707838273179,-500.0,0.00031232,2]
[313935494,1707838273194,-500.0,0.00031232,2]
[313935495,1707838273209,-506.78,0.00031232,2]
[313935496,1707838273223,-500.0,0.00031232,2]
[313935497,1707838273238,-500.0,0.00031232,2]
[313935498,1707838273252,-500.0,0.00031232,2]
[313935499,1707838273268,-500.0,0.00031232,2]
[313935500,1707838273283,-500.0,0.00031232,2]
[313935501,1707838273298,-529.52,0.00031232,2]
[313935502,1707838273312,-500.0,0.00031232,2]
[313935503,1707838273327,-500.0,0.00031232,2]
[313935504,1707838273341,-500.0,0.00031232,2]
[313935505,1707838273483,-500.0,0.00031232,2]
[313935506,1707838273495,-500.0,0.00031232,2]
[313935507,1707838273505,-500.0,0.00031232,2]
[313935508,1707838273514,-500.0,0.00031232,2]
[313935509,1707838273524,-500.0,0.00031232,2]
[313935510,1707838273535,-596.12,0.00031232,2]
[313935511,1707838273546,-500.0,0.00031232,2]
[313935512,1707838273557,-378.79306488,0.00031232,2]
[313935513,1707838273567,-781.4,0.00031232,2]
[313935514,1707838273577,-500.0,0.00031232,2]
[313935515,1707838273589,-539.28,0.00031232,2]
[313935516,1707838273600,-500.0,0.00031232,2]
[313935517,1707838273610,-2958.35,0.00031232,2]
[313935518,1707838273620,-807.59,0.00031232,2]
[313935519,1707838273632,-500.0,0.00031232,2]
[313935520,1707838273642,-500.0,0.00031232,2]
[313935521,1707838273652,-181.34,0.00031232,2]
[313935522,1707838273662,-500.0,0.00031232,2]
[313935523,1707838273672,-291.3,0.00031232,2]
[313935524,1707838273682,-500.0,0.00031232,2]
[313935525,1707838273693,-347.16,0.00031232,2]
[313935526,1707838273702,-646.33,0.00031232,2]
[313935527,1707838273712,-500.0,0.00031232,2]
[313935528,1707838273721,-500.0,0.00031232,2]
[313935529,1707838273731,-585.5,0.00031232,2]
[313935530,1707838273741,-743.67,0.00031232,2]
[313935531,1707838273752,-1059.03,0.00031232,2]
[313935532,1707838273761,-500.0,0.00031232,2]
[313935533,1707838273771,-500.0,0.00031232,2]
[313935534,1707838273781,-571.36,0.00031232,2]
[313935535,1707838273790,-558.26,0.00031232,2]
[313935536,1707838273800,-606.86332322,0.00031232,2]
[313935537,1707838273810,-500.0,0.00031232,2]
[313935538,1707838273819,-696.81376341,0.00031301,2]
[313935539,1707838273828,-488.24,0.00031332,2]
[313935540,1707838273838,-20861.85130358,0.0003136,2]
[313935541,1707838273847,-10095.10718366,0.00031503,3]
[313935542,1707838273857,-500.0,0.00031506,2]
[313935543,1707838273866,-500.0,0.00031506,2]
[313935544,1707838273876,-1934.6,0.00031506,2]
[313935545,1707838273885,-920.05,0.00031506,2]
[313935546,1707838273894,-298.3,0.00031506,2]
[313935547,1707838273904,-500.0,0.00031506,2]
[313935548,1707838273914,-1567.32,0.00031506,2]
[313935549,1707838273924,-318.34,0.00031506,2]
[313935550,1707838273936,-500.0,0.00031506,2]
[313935551,1707838273946,-500.0,0.00031506,2]
[313935552,1707838273956,-500.0,0.00031506,2]
[313935553,1707838273965,-500.0,0.00031506,2]
[313935554,1707838273975,-500.0,0.00031506,2]
[313935555,1707838273984,-500.0,0.00031506,2]
[313935556,1707838273994,-347.97,0.00031506,2]
[313935557,1707838274003,-506.78,0.00031506,2]
[313935558,1707838274013,-515.36,0.00031506,2]
[313935559,1707838274023,-500.0,0.00031506,2]
[313935560,1707838274032,-500.0,0.00031506,2]
[313935561,1707838274042,-500.0,0.00031506,2]
[313935562,1707838274051,-500.0,0.00031506,2]
[313935563,1707838274061,-529.52,0.00031506,2]
[313935564,1707838274071,-500.0,0.00031506,2]
[313935565,1707838274081,-500.0,0.00031506,2]
[313935566,1707838274090,-500.0,0.00031506,2]
[313935567,1707838274100,-500.0,0.00031506,2]
[313935568,1707838274109,-500.0,0.00031506,2]
[313935569,1707838274119,-500.0,0.00031506,2]
[313935570,1707838274129,-500.0,0.00031506,2]
[313935571,1707838274139,-500.0,0.00031506,2]
[313935572,1707838274148,-596.12,0.00031506,2]
[313935573,1707838274159,-500.0,0.00031506,2]
[313935574,1707838274168,-781.4,0.00031506,2]
[313935575,1707838274178,-500.0,0.00031506,2]
[313935576,1707838274190,-539.28,0.00031506,2]
[313935577,1707838274199,-500.0,0.00031506,2]
[313935578,1707838274209,-2958.35,0.00031506,2]
[313935579,1707838274219,-807.59,0.00031506,2]
[313935580,1707838274229,-516.59,0.00031506,2]
[313935581,1707838274238,-341.89,0.00031506,2]
[313935582,1707838274248,-500.0,0.00031506,2]
[313935583,1707838274257,-500.0,0.00031506,2]
[313935584,1707838274268,-646.33,0.00031506,2]
[313935585,1707838274278,-500.0,0.00031506,2]
[313935586,1707838274287,-500.0,0.00031506,2]
[313935587,1707838274297,-585.5,0.00031506,2]
[313935588,1707838274307,-743.67,0.00031506,2]
[313935589,1707838274317,-1059.03,0.00031506,2]
[313935590,1707838274327,-270.74,0.00031506,2]
[313935591,1707838274339,-500.0,0.00031506,2]
[313935592,1707838274351,-571.36,0.00031506,2]
[313935593,1707838274360,-558.26,0.00031506,2]
[313935594,1707838274370,-156.73,0.00031506,2]
[313935595,1707838274381,-6118.26167755,0.00031581,7]
[313935596,1707838274390,-4357.55064869,0.00031581,7]
[313935597,1707838274399,-5802.50032686,0.00031581,7]
[313935598,1707838274409,-151.0,0.00031585,7]
[313935599,1707838274418,-153.43,0.000316,2]
[313935600,1707838274429,-167.25,0.00031644,2]
[313935601,1707838274440,-180.0,0.00031644,2]
[313935602,1707838274450,-248.17784,0.00031689,4]
[313935603,1707838274459,-500.0,0.0003178,2]
[313935604,1707838274469,-317.01,0.0003178,2]
[313935605,1707838274478,-1934.6,0.0003178,2]
[313935606,1707838274489,-920.05,0.0003178,2]
[313935607,1707838274499,-500.0,0.0003178,2]
[313935608,1707838274509,-1567.32,0.0003178,2]
[313935609,1707838274520,-500.0,0.0003178,2]
[313935610,1707838274530,-500.0,0.0003178,2]
[313935611,1707838274540,-472.0,0.0003178,2]
[313935612,1707838274550,-500.0,0.0003178,2]
[313935613,1707838274560,-500.0,0.0003178,2]
[313935614,1707838274570,-500.0,0.0003178,2]
[313935615,1707838274580,-506.78,0.0003178,2]
[313935616,1707838274590,-500.0,0.0003178,2]
[313935617,1707838274600,-500.0,0.0003178,2]
[313935618,1707838274609,-500.0,0.0003178,2]
[313935619,1707838274619,-500.0,0.0003178,2]
[313935620,1707838274629,-529.52,0.0003178,2]
[313935621,1707838274639,-500.0,0.0003178,2]
[313935622,1707838274648,-500.0,0.0003178,2]
[313935623,1707838274657,-500.0,0.0003178,2]
[313935624,1707838274667,-500.0,0.0003178,2]
[313935625,1707838274676,-366.27,0.0003178,2]
[313935626,1707838274688,-500.0,0.0003178,2]
[313935627,1707838274698,-500.0,0.0003178,2]
[313935628,1707838274708,-386.4,0.0003178,2]
[313935629,1707838274718,-596.12,0.0003178,2]
[313935630,1707838274727,-500.0,0.0003178,2]
[313935631,1707838274737,-781.4,0.0003178,2]
[313935632,1707838274747,-539.28,0.0003178,2]
[313935633,1707838274757,-500.0,0.0003178,2]
[313935634,1707838274767,-500.0,0.0003178,2]
[313935635,1707838274776,-2958.35,0.0003178,2]
[313935636,1707838274786,-807.59,0.0003178,2]
[313935637,1707838274795,-500.0,0.0003178,2]
[313935638,1707838274805,-345.41,0.0003178,2]
[313935639,1707838274815,-646.33,0.0003178,2]
[313935640,1707838274824,-500.0,0.0003178,2]
[313935641,1707838274833,-500.0,0.0003178,2]
[313935642,1707838274843,-585.5,0.0003178,2]
[313935643,1707838274852,-743.67,0.0003178,2]
[313935644,1707838274862,-1059.03,0.0003178,2]
[313935645,1707838274872,-500.0,0.0003178,2]
[313935646,1707838274969,-571.36,0.0003178,2]
[313935647,1707838274978,-558.26,0.0003178,2]
[313935648,1707838274988,-169.44597238,0.00031785,4]
[313935649,1707838274997,-245.51882424,0.00031785,4]
[313935650,1707838275006,-1872.17672382,0.00031786,4]
[313935651,1707838275015,-155.0,0.00031786,4]
[313935652,1707838275024,-203.50750251,0.00031787,4]
[313935653,1707838275033,-155.40634064,0.00031787,4]
[313935654,1707838275042,-157.50481465,0.00031787,4]
[313935655,1707838275051,-213.20006558,0.00031787,4]
[313935656,1707838275061,-617.73515854,0.00031788,4]
[313935657,1707838275070,-303.21274241,0.00031789,4]
[313935658,1707838275080,-231.02997375,0.00031789,4]
[313935659,1707838275090,-107882.11644,0.000318,3]
[313935660,1707838275099,-662.0,0.00031916,5]
[313935661,1707838275109,-50000.0,0.00032,2]
[313935662,1707838275119,-13160.34354298,0.00032,4]
[313935663,1707838275128,-525.46610018,0.00032009,4]
[313935664,1707838275139,-155.20561077,0.00032009,4]
[313935665,1707838275148,-699.73561086,0.00032009,15]
[313935666,1707838275157,-1229.23627736,0.00032009,4]
[313935667,1707838275166,-630.8527813,0.00032009,4]
[313935668,1707838275175,-1144.3136426,0.00032009,4]
[313935669,1707838275189,-1053.34867801,0.00032009,4]
[313935670,1707838275198,-1519.40283713,0.00032009,4]
[313935671,1707838275207,-156.72934825,0.00032009,4]
[313935672,1707838275217,-417.14335753,0.00032009,4]
[313935673,1707838275226,-2339.42272343,0.00032009,4]
[313935674,1707838275236,-376.66029606,0.00032009,4]
[313935675,1707838275246,-200.0,0.00032009,2]
[313935676,1707838275255,-247.40585287,0.00032009,4]
[313935677,1707838275265,-156.29752339,0.00032009,4]
[313935678,1707838275275,-161.05937526,0.00032009,4]
[313935679,1707838275286,-225.88929481,0.0003201,4]
[313935680,1707838275297,-3159.10290502,0.0003201,4]
[313935681,1707838275308,-500.0,0.00032054,2]
[313935682,1707838275319,-1934.6,0.00032054,2]
[313935683,1707838275331,-920.05,0.00032054,2]
[313935684,1707838275344,-500.0,0.00032054,2]
[313935685,1707838275356,-1567.32,0.00032054,2]
[313935686,1707838275366,-500.0,0.00032054,2]
[313935687,1707838275378,-500.0,0.00032054,2]
[313935688,1707838275387,-500.0,0.00032054,2]
[313935689,1707838275397,-391.76,0.00032054,2]
[313935690,1707838275407,-500.0,0.00032054,2]
[313935691,1707838275417,-506.78,0.00032054,2]
[313935692,1707838275427,-500.0,0.00032054,2]
[313935693,1707838275440,-334.4,0.00032054,2]
[313935694,1707838275450,-500.0,0.00032054,2]
[313935695,1707838275459,-500.0,0.00032054,2]
[313935696,1707838275469,-529.52,0.00032054,2]
[313935697,1707838275478,-428.84,0.00032054,2]
[313935698,1707838275488,-500.0,0.00032054,2]
[313935699,1707838275497,-500.0,0.00032054,2]
[313935700,1707838275507,-500.0,0.00032054,2]
[313935701,1707838275517,-648.01,0.00032054,2]
[313935702,1707838275527,-565.29,0.00032054,2]
[313935703,1707838275537,-596.12,0.00032054,2]
[313935704,1707838275546,-443.44,0.00032054,2]
[313935705,1707838275556,-781.4,0.00032054,2]
[313935706,1707838275565,-539.28,0.00032054,2]
[313935707,1707838275575,-500.0,0.00032054,2]
[313935708,1707838275585,-500.0,0.00032054,2]
[313935709,1707838275594,-2958.35,0.00032054,2]
[313935710,1707838275604,-807.59,0.00032054,2]
[313935711,1707838275613,-500.0,0.00032054,2]
[313935712,1707838275623,-646.33,0.00032054,2]
[313935713,1707838275631,-500.0,0.00032054,2]
[313935714,1707838275641,-500.0,0.00032054,2]
[313935715,1707838275651,-585.5,0.00032054,2]
[313935716,1707838275660,-743.67,0.00032054,2]
[313935717,1707838275670,-1059.03,0.00032054,2]
[313935718,1707838275680,-500.0,0.00032054,2]
[313935719,1707838275692,-571.36,0.00032054,2]
[313935720,1707838275701,-558.26,0.00032054,2]
[313935721,1707838275710,-2828.77995233,0.00032143,5]
[313935722,1707838275720,-174.67,0.00032181,2]
[313935723,1707838275730,-151.0,0.00032229,4]
[313935724,1707838275740,-150.0,0.00032233,2]
[313935725,1707838275749,-7609.889101,0.00032233,2]
[313935726,1707838275758,-500.0,0.00032328,2]
[313935727,1707838275768,-1934.6,0.00032328,2]
[313935728,1707838275778,-920.05,0.00032328,2]
[313935729,1707838275788,-500.0,0.00032328,2]
[313935730,1707838275797,-1567.32,0.00032328,2]
[313935731,1707838275807,-500.0,0.00032328,2]
[313935732,1707838275816,-500.0,0.00032328,2]
[313935733,1707838275825,-500.0,0.00032328,2]
[313935734,1707838275834,-500.0,0.00032328,2]
[313935735,1707838275843,-506.78,0.00032328,2]
[313935736,1707838275853,-500.0,0.00032328,2]
[313935737,1707838275862,-500.0,0.00032328,2]
[313935738,1707838275871,-201.92,0.00032328,2]
[313935739,1707838275881,-529.52,0.00032328,2]
[313935740,1707838275890,-500.0,0.00032328,2]
[313935741,1707838275899,-500.0,0.00032328,2]
[313935742,1707838275908,-500.0,0.00032328,2]
[313935743,1707838275917,-596.12,0.00032328,2]
[313935744,1707838275926,-781.4,0.00032328,2]
[313935745,1707838275937,-539.28,0.00032328,2]
[313935746,1707838275947,-283.13,0.00032328,2]
[313935747,1707838275956,-500.0,0.00032328,2]
[313935748,1707838275966,-2958.35,0.00032328,2]
[313935749,1707838275975,-807.59,0.00032328,2]
[313935750,1707838275984,-500.0,0.00032328,2]
[313935751,1707838275993,-646.33,0.00032328,2]
[313935752,1707838276002,-500.0,0.00032328,2]
[313935753,1707838276011,-500.0,0.00032328,2]
[313935754,1707838276021,-585.5,0.00032328,2]
[313935755,1707838276031,-743.67,0.00032328,2]
[313935756,1707838276040,-1059.03,0.00032328,2]
[313935757,1707838276050,-500.0,0.00032328,2]
[313935758,1707838276060,-571.36,0.00032328,2]
[313935759,1707838276070,-558.26,0.00032328,2]
[313935760,1707838276080,-10095.10718366,0.00032329,4]
[313935761,1707838276090,-696.81376341,0.00032397,2]
[313935762,1707838276100,-20861.85130358,0.00032447,2]
[313935763,1707838276110,-478.22,0.00032545,2]
[313935764,1707838276120,-1112.0,0.00032568,2]
[313935765,1707838276130,-500.0,0.00032602,2]
[313935766,1707838276140,-1934.6,0.00032602,2]
[313935767,1707838276150,-920.05,0.00032602,2]
[313935768,1707838276160,-500.0,0.00032602,2]
[313935769,1707838276170,-1567.32,0.00032602,2]
[313935770,1707838276180,-500.0,0.00032602,2]
[313935771,1707838276194,-500.0,0.00032602,2]
[313935772,1707838276205,-500.0,0.00032602,2]
[313935773,1707838276215,-219.61545265,0.00032602,2]
[313935774,1707838276226,-506.78,0.00032602,2]
[313935775,1707838276236,-500.0,0.00032602,2]
[313935776,1707838276246,-500.0,0.00032602,2]
[313935777,1707838276255,-529.52,0.00032602,2]
[313935778,1707838276265,-500.0,0.00032602,2]
[313935779,1707838276275,-500.0,0.00032602,2]
[313935780,1707838276285,-500.0,0.00032602,2]
[313935781,1707838276295,-596.12,0.00032602,2]
[313935782,1707838276305,-781.4,0.00032602,2]
[313935783,1707838276315,-539.28,0.00032602,2]
[313935784,1707838276324,-500.0,0.00032602,2]
[313935785,1707838276335,-2958.35,0.00032602,2]
[313935786,1707838276346,-807.59,0.00032602,2]
[313935787,1707838276359,-416.91,0.00032602,2]
[313935788,1707838276369,-646.33,0.00032602,2]
[313935789,1707838276379,-500.0,0.00032602,2]
[313935790,1707838276388,-500.0,0.00032602,2]
[313935791,1707838276398,-585.5,0.00032602,2]
[313935792,1707838276408,-743.67,0.00032602,2]
[313935793,1707838276417,-1059.03,0.00032602,2]
[313935794,1707838276427,-500.0,0.00032602,2]
[313935795,1707838276440,-571.36,0.00032602,2]
[313935796,1707838276450,-558.26,0.00032602,2]
[313935797,1707838276460,-7609.889101,0.00032636,2]
[313935798,1707838276470,-150.0,0.0003277,2]
[313935799,1707838276479,-81180.21711085,0.0003278,5]
[313935800,1707838276489,-931.6901056,0.000328,4]
[313935801,1707838276498,-496.36620312,0.000328,2]
[313935802,1707838276507,-683.63828481,0.000328,2]
[313935803,1707838276517,-212.46238577,0.000328,21]
[313935804,1707838276527,-5362.64679428,0.000328,2]
[313935805,1707838276538,-2228.75748244,0.000328,2]
[313935806,1707838276547,-671.25035838,0.000328,2]
[313935807,1707838276557,-1000.0,0.00032876,7]
[313935808,1707838276566,-500.0,0.00032876,2]
[313935809,1707838276575,-500.0,0.00032876,2]
[313935810,1707838276585,-500.0,0.00032876,2]
[313935811,1707838276594,-500.0,0.00032876,2]
[313935812,1707838276603,-500.0,0.00032876,2]
[313935813,1707838276613,-500.0,0.00032876,2]
[313935814,1707838276622,-500.0,0.00032876,2]
[313935815,1707838276632,-500.0,0.00032876,2]
[313935816,1707838276641,-500.0,0.00032876,2]
[313935817,1707838276651,-500.0,0.00032876,2]
[313935818,1707838276661,-500.0,0.00032876,2]
[313935819,1707838276670,-500.0,0.00032876,2]
[313935820,1707838276680,-500.0,0.00032876,2]
[313935821,1707838276692,-500.0,0.00032876,2]
[313935822,1707838276701,-500.0,0.00032876,2]
[313935823,1707838276711,-500.0,0.00032876,2]
[313935824,1707838276720,-500.0,0.00032876,2]
[313935825,1707838276730,-1934.6,0.00032876,2]
[313935826,1707838276739,-5000.0,0.00032876,2]
[313935827,1707838276748,-1000.0,0.00032876,2]
[313935828,1707838276758,-920.05,0.00032876,2]
[313935829,1707838276768,-500.0,0.00032876,2]
[313935830,1707838276777,-1567.32,0.00032876,2]
[313935831,1707838276787,-500.0,0.00032876,2]
[313935832,1707838276796,-500.0,0.00032876,2]
[313935833,1707838276806,-461.78,0.00032876,2]
[313935834,1707838276816,-506.78,0.00032876,2]
[313935835,1707838276825,-500.0,0.00032876,2]
[313935836,1707838276834,-500.0,0.00032876,2]
[313935837,1707838276844,-529.52,0.00032876,2]
[313935838,1707838276853,-500.0,0.00032876,2]
[313935839,1707838276862,-500.0,0.00032876,2]
[313935840,1707838276871,-500.0,0.00032876,2]
[313935841,1707838276880,-596.12,0.00032876,2]
[313935842,1707838276890,-781.4,0.00032876,2]
[313935843,1707838276899,-539.28,0.00032876,2]
[313935844,1707838276908,-500.0,0.00032876,2]
[313935845,1707838276917,-2958.35,0.00032876,2]
[313935846,1707838276927,-807.59,0.00032876,2]
[313935847,1707838276938,-646.33,0.00032876,2]
[313935848,1707838276947,-500.0,0.00032876,2]
[313935849,1707838276956,-585.5,0.00032876,2]
[313935850,1707838276965,-500.0,0.00032876,2]
[313935851,1707838276975,-743.67,0.00032876,2]
[313935852,1707838276985,-1059.03,0.00032876,2]
[313935853,1707838276994,-500.0,0.00032876,2]
[313935854,1707838277004,-571.36,0.00032876,2]
[313935855,1707838277014,-558.26,0.00032876,2]
[313935856,1707838277024,-150.0,0.00032877,2]
[313935857,1707838277033,-229.14,0.00032877,2]
[313935858,1707838277043,-3429.93530789,0.0003288,5]
[313935859,1707838277053,-617.21591475,0.0003288,6]
[313935860,1707838277063,-635.42,0.0003288,2]
[313935861,1707838277072,-635.42,0.0003288,2]
[313935862,1707838277082,-635.42,0.0003288,2]
[313935863,1707838277091,-635.42,0.0003288,2]
[313935864,1707838277101,-635.42,0.0003288,2]
[313935865,1707838277110,-151.0,0.00032887,2]
[313935866,1707838277120,-212.0,0.00032889,12]
[313935867,1707838277130,-5000.0,0.000329,2]
[313935868,1707838277139,-1000.0,0.000329,2]
[313935869,1707838277149,-5500.0,0.000329,2]
[313935870,1707838277159,-1500.0,0.000329,2]
[313935871,1707838277168,-1000.0,0.00032994,7]
[313935872,1707838277178,-150.0,0.00032999,2]
[313935873,1707838277188,-50000.0,0.00033,3]
[313935874,1707838277197,-300.01369287,0.00033,4]
[313935875,1707838277207,-493.00255021,0.00033,4]
[313935876,1707838277216,-203.2362796,0.00033,2]
[313935877,1707838277225,-767.6781702,0.00033,4]
[313935878,1707838277235,-550.0,0.00033,3]
[313935879,1707838277244,-158.0,0.00033,2]
[313935880,1707838277253,-7609.889101,0.00033039,2]
[313935881,1707838277263,-1046.439,0.00033129,2]
[313935882,1707838277273,-453.0,0.00033129,2]
[313935883,1707838277283,-500.0,0.0003315,2]
[313935884,1707838277292,-500.0,0.0003315,2]
[313935885,1707838277302,-1934.6,0.0003315,2]
[313935886,1707838277311,-5000.0,0.0003315,3]
[313935887,1707838277321,-920.05,0.0003315,2]
[313935888,1707838277332,-500.0,0.0003315,2]
[313935889,1707838277342,-1567.32,0.0003315,2]
[313935890,1707838277352,-500.0,0.0003315,2]
[313935891,1707838277362,-500.0,0.0003315,2]
[313935892,1707838277373,-506.78,0.0003315,2]
[313935893,1707838277383,-500.0,0.0003315,2]
[313935894,1707838277392,-279.87,0.0003315,2]
[313935895,1707838277401,-529.52,0.0003315,2]
[313935896,1707838277411,-500.0,0.0003315,2]
[313935897,1707838277420,-379.0,0.0003315,2]
[313935898,1707838277431,-500.0,0.0003315,2]
[313935899,1707838277442,-596.12,0.0003315,2]
[313935900,1707838277452,-781.4,0.0003315,2]
[313935901,1707838277461,-539.28,0.0003315,2]
[313935902,1707838277470,-500.0,0.0003315,2]
[313935903,1707838277479,-2958.35,0.0003315,2]
[313935904,1707838277489,-807.59,0.0003315,2]
[313935905,1707838277498,-646.33,0.0003315,2]
[313935906,1707838277507,-500.0,0.0003315,2]
[313935907,1707838277517,-585.5,0.0003315,2]
[313935908,1707838277527,-500.0,0.0003315,2]
[313935909,1707838277536,-743.67,0.0003315,2]
[313935910,1707838277545,-1059.03,0.0003315,2]
[313935911,1707838277555,-500.0,0.0003315,2]
[313935912,1707838277565,-571.36,0.0003315,2]
[313935913,1707838277574,-558.26,0.0003315,2]
[313935914,1707838277584,-10095.10718366,0.00033154,5]
[313935915,1707838277593,-200.0,0.00033274,3]
[313935916,1707838277602,-153.43,0.000333,2]
[313935917,1707838277612,-153.43,0.000333,2]
[313935918,1707838277621,-150.0,0.00033307,2]
[313935919,1707838277631,-500.0,0.00033424,2]
[313935920,1707838277640,-371.11692548,0.00033424,2]
[313935921,1707838277650,-1934.6,0.00033424,2]
[313935922,1707838277660,-920.05,0.00033424,2]
[313935923,1707838277670,-500.0,0.00033424,2]
[313935924,1707838277680,-1567.32,0.00033424,2]
[313935925,1707838277804,-500.0,0.00033424,2]
[313935926,1707838277814,-500.0,0.00033424,2]
[313935927,1707838277823,-506.78,0.00033424,2]
[313935928,1707838277833,-500.0,0.00033424,2]
[313935929,1707838277842,-529.52,0.00033424,2]
[313935930,1707838277851,-500.0,0.00033424,2]
[313935931,1707838277861,-204.79,0.00033424,2]
[313935932,1707838277871,-596.12,0.00033424,2]
[313935933,1707838277880,-781.4,0.00033424,2]
[313935934,1707838277889,-539.28,0.00033424,2]
[313935935,1707838277898,-500.0,0.00033424,2]
[313935936,1707838277907,-2958.35,0.00033424,2]
[313935937,1707838277917,-807.59,0.00033424,2]
[313935938,1707838277926,-646.33,0.00033424,2]
[313935939,1707838277936,-500.0,0.00033424,2]
[313935940,1707838277946,-305.69,0.00033424,2]
[313935941,1707838277955,-585.5,0.00033424,2]
[313935942,1707838277964,-743.67,0.00033424,2]
[313935943,1707838277973,-1059.03,0.00033424,2]
[313935944,1707838277982,-500.0,0.00033424,2]
[313935945,1707838277992,-571.36,0.00033424,2]
[313935946,1707838278001,-558.26,0.00033424,2]
[313935947,1707838278010,-7609.889101,0.00033442,2]
[313935948,1707838278020,-2828.77995233,0.00033457,6]
[313935949,1707838278029,-696.81376341,0.00033494,2]
[313935950,1707838278038,-568.62,0.000335,2]
[313935951,1707838278049,-568.62,0.000335,2]
[313935952,1707838278059,-568.62,0.000335,2]
[313935953,1707838278069,-568.62,0.000335,2]
[313935954,1707838278078,-568.62,0.000335,2]
[313935955,1707838278087,-568.62,0.000335,2]
[313935956,1707838278096,-568.62,0.000335,2]
[313935957,1707838278105,-568.62,0.000335,2]
[313935958,1707838278114,-568.62,0.000335,2]
[313935959,1707838278123,-568.62,0.000335,2]
[313935960,1707838278132,-568.62,0.000335,2]
[313935961,1707838278142,-568.62,0.000335,2]
[313935962,1707838278151,-568.62,0.000335,2]
[313935963,1707838278161,-568.62,0.000335,2]
[313935964,1707838278171,-568.62,0.000335,2]
[313935965,1707838278180,-568.62,0.000335,2]
[313935966,1707838278194,-568.62,0.000335,2]
[313935967,1707838278203,-568.62,0.000335,2]
[313935968,1707838278213,-568.62,0.000335,2]
[313935969,1707838278222,-568.62,0.000335,2]
[313935970,1707838278232,-20861.85130358,0.00033533,2]
[313935971,1707838278241,-488.24,0.00033596,2]
[313935972,1707838278251,-800.0,0.00033603,2]
[313935973,1707838278260,-200.0,0.00033603,10]
[313935974,1707838278269,-500.0,0.00033603,10]
[313935975,1707838278279,-500.0,0.00033698,2]